[Event "Titled Tuesday Blitz May 10 Early 2022"]
[White "Vusatiuk, Vladimir"]
[Black "Keller, Peter"]
[WhiteFideId "14118610"]
[BlackFideId "1272105"]
[WhiteElo "2157"]
[BlackElo "2275"]
[Result "1-0"]
[Round "11"]
[TimeControl "180+1"]
[Date "2022.05.11"]
[WhiteClock "0:00:11"]
[BlackClock "0:00:09"]

1. d4 {[%clk 0:03:00]}  Nf6 {[%clk 0:02:57]} 2. c4 {[%clk 0:03:00]}  e6 {[%clk 0:02:57]} 3. Nc3 {[%clk 0:03:00]}  Bb4 {[%clk 0:02:57]} 4. Qc2 {[%clk 0:02:58]}  d5 {[%clk 0:02:54]} 5. cxd5 {[%clk 0:02:48]}  Qxd5 {[%clk 0:02:55]} 6. e3 {[%clk 0:02:36]}  c5 {[%clk 0:02:52]} 7. Nf3 {[%clk 0:02:19]}  Nc6 {[%clk 0:02:22]} 8. Bd2 {[%clk 0:02:10]}  Bxc3 {[%clk 0:02:19]} 9. bxc3 {[%clk 0:02:04]}  b6 {[%clk 0:02:11]} 10. Bb5 {[%clk 0:01:54]}  Bb7 {[%clk 0:02:03]} 11. O-O {[%clk 0:01:44]}  O-O {[%clk 0:02:02]} 12. Rfe1 {[%clk 0:01:43]}  Ne4 {[%clk 0:01:46]} 13. Bd3 {[%clk 0:01:23]}  Nxd2 {[%clk 0:01:29]} 14. Qxd2 {[%clk 0:01:24]}  cxd4 {[%clk 0:01:26]} 15. cxd4 {[%clk 0:00:52]}  Rfd8 {[%clk 0:01:25]} 16. Rad1 {[%clk 0:00:47]}  Rac8 {[%clk 0:01:18]} 17. e4 {[%clk 0:00:46]}  Qa5 {[%clk 0:01:12]} 18. Qe3 {[%clk 0:00:36]}  h6 {[%clk 0:00:58]} 19. h4 {[%clk 0:00:26]}  Nb4 {[%clk 0:00:35]} 20. Bb1 {[%clk 0:00:24]}  Nc2 {[%clk 0:00:35]} 21. Qf4 {[%clk 0:00:17]}  Nxe1 {[%clk 0:00:32]} 22. Rxe1 {[%clk 0:00:18]}  Rd7 {[%clk 0:00:27]} 23. Ne5 {[%clk 0:00:15]}  Qxe1+ {[%clk 0:00:25]} 24. Kh2 {[%clk 0:00:15]}  Rdc7 {[%clk 0:00:22]} 25. Bd3 {[%clk 0:00:15]}  Qc1 {[%clk 0:00:20]} 26. Qg4 {[%clk 0:00:14]}  a5 {[%clk 0:00:16]} 27. h5 {[%clk 0:00:14]}  Qg5 {[%clk 0:00:15]} 28. Qf3 {[%clk 0:00:14]}  f5 {[%clk 0:00:15]} 29. d5 {[%clk 0:00:12]}  fxe4 {[%clk 0:00:13]} 30. Qxe4 {[%clk 0:00:12]}  Qf5 {[%clk 0:00:11]} 31. Qe2 {[%clk 0:00:09]}  Qf4+ {[%clk 0:00:11]} 32. g3 {[%clk 0:00:09]}  Qf6 {[%clk 0:00:09]} 33. Qe4 {[%clk 0:00:09]}  Qf5 {[%clk 0:00:10]} 34. Qe2 {[%clk 0:00:09]}  Qf6 {[%clk 0:00:08]} 35. Qe4 {[%clk 0:00:10]}  Bxd5 {[%clk 0:00:09]} 36. Qh7+ {[%clk 0:00:10]}  Kf8 {[%clk 0:00:09]} 37. Ng6+ {[%clk 0:00:11]}  Kf7 {[%clk 0:00:09]} 38. f4 {[%clk 0:00:11]}  Rc2+ {[%clk 0:00:08]} 39. Kh3 {[%clk 0:00:11]}  Bg2+ {[%clk 0:00:08]} 40. Kh2 {[%clk 0:00:11]}  Bf3+ {[%clk 0:00:09]} 41. Kh3 {[%clk 0:00:11]}  Bg4+ {[%clk 0:00:08]} 42. Kxg4 {[%clk 0:00:10]}  R2c3 {[%clk 0:00:09]} 43. Nh8+ {[%clk 0:00:10]}  Ke7 {[%clk 0:00:09]} 44. Ng6+ {[%clk 0:00:10]}  Kd6 {[%clk 0:00:09]} 45. Ne5 {[%clk 0:00:09]}  b5 {[%clk 0:00:08]} 46. Qe4 {[%clk 0:00:10]}  Rxd3 {[%clk 0:00:08]} 47. Qxd3+ {[%clk 0:00:10]}  Ke7 {[%clk 0:00:08]} 48. Qd7+ {[%clk 0:00:10]}  Kf8 {[%clk 0:00:09]} 49. Qxc8+ {[%clk 0:00:11]}  Ke7 {[%clk 0:00:09]} 50. Qc7+ {[%clk 0:00:11]} 1-0


[Site "https://www.chess.com"]

[Event "Titled Tuesday Blitz May 10 Early 2022"]
[White "Wagh Suyog"]
[Black "Juhasz, Agoston"]
[WhiteFideId "25071688"]
[BlackFideId "778346"]
[WhiteElo "2181"]
[BlackElo "2211"]
[Result "1-0"]
[Round "11"]
[TimeControl "180+1"]
[Date "2022.05.10"]
[WhiteClock "0:00:11"]
[BlackClock "0:00:03"]

1. e4 {[%clk 0:03:00]}  e6 {[%clk 0:02:59]} 2. d4 {[%clk 0:03:00]}  d5 {[%clk 0:03:00]} 3. Nd2 {[%clk 0:02:59]}  c5 {[%clk 0:03:00]} 4. exd5 {[%clk 0:03:00]}  Qxd5 {[%clk 0:03:00]} 5. Ngf3 {[%clk 0:03:00]}  cxd4 {[%clk 0:02:57]} 6. Bc4 {[%clk 0:03:01]}  Qd7 {[%clk 0:02:55]} 7. O-O {[%clk 0:03:01]}  Nc6 {[%clk 0:02:55]} 8. Nb3 {[%clk 0:03:02]}  Nf6 {[%clk 0:02:55]} 9. Nbxd4 {[%clk 0:03:02]}  Be7 {[%clk 0:02:52]} 10. c3 {[%clk 0:03:00]}  O-O {[%clk 0:02:51]} 11. Bf4 {[%clk 0:02:59]}  Nd5 {[%clk 0:02:47]} 12. Bg3 {[%clk 0:02:55]}  a6 {[%clk 0:02:37]} 13. Qe2 {[%clk 0:02:53]}  Nxd4 {[%clk 0:02:33]} 14. Nxd4 {[%clk 0:02:52]}  b5 {[%clk 0:02:30]} 15. Bd3 {[%clk 0:02:52]}  Bb7 {[%clk 0:02:27]} 16. Rad1 {[%clk 0:02:53]}  Bf6 {[%clk 0:02:19]} 17. Bb1 {[%clk 0:02:48]}  Qe7 {[%clk 0:02:15]} 18. Rfe1 {[%clk 0:02:47]}  Rfd8 {[%clk 0:02:14]} 19. Qg4 {[%clk 0:02:39]}  Kh8 {[%clk 0:01:49]} 20. Be5 {[%clk 0:02:33]}  Bxe5 {[%clk 0:01:47]} 21. Rxe5 {[%clk 0:02:33]}  Qf6 {[%clk 0:01:39]} 22. Rde1 {[%clk 0:02:28]}  Rd6 {[%clk 0:01:32]} 23. g3 {[%clk 0:01:55]}  Rad8 {[%clk 0:01:20]} 24. a3 {[%clk 0:01:54]}  g6 {[%clk 0:01:19]} 25. h4 {[%clk 0:01:53]}  Qg7 {[%clk 0:01:16]} 26. h5 {[%clk 0:01:53]}  Nf6 {[%clk 0:01:14]} 27. Qh4 {[%clk 0:01:45]}  Nxh5 {[%clk 0:01:12]} 28. Qe7 {[%clk 0:01:44]}  R6d7 {[%clk 0:01:03]} 29. Qh4 {[%clk 0:01:42]}  Nf6 {[%clk 0:00:57]} 30. Qg5 {[%clk 0:01:34]}  Rd5 {[%clk 0:00:56]} 31. Ba2 {[%clk 0:01:31]}  Rxe5 {[%clk 0:00:56]} 32. Qxe5 {[%clk 0:01:32]}  Nd5 {[%clk 0:00:53]} 33. Qxg7+ {[%clk 0:01:29]}  Kxg7 {[%clk 0:00:53]} 34. Rxe6 {[%clk 0:01:30]}  fxe6 {[%clk 0:00:34]} 35. Nxe6+ {[%clk 0:01:29]}  Kf6 {[%clk 0:00:35]} 36. Nxd8 {[%clk 0:01:30]}  Ba8 {[%clk 0:00:35]} 37. c4 {[%clk 0:01:09]}  bxc4 {[%clk 0:00:33]} 38. Bxc4 {[%clk 0:01:09]}  Ke7 {[%clk 0:00:32]} 39. Bxa6 {[%clk 0:01:09]}  Kxd8 {[%clk 0:00:32]} 40. Kh2 {[%clk 0:01:03]}  Kc7 {[%clk 0:00:29]} 41. Kh3 {[%clk 0:01:03]}  Kd6 {[%clk 0:00:28]} 42. Kg4 {[%clk 0:01:03]}  h6 {[%clk 0:00:26]} 43. Bd3 {[%clk 0:01:00]}  Ne7 {[%clk 0:00:24]} 44. a4 {[%clk 0:00:58]}  Ke5 {[%clk 0:00:18]} 45. b4 {[%clk 0:00:49]}  Kf6 {[%clk 0:00:17]} 46. b5 {[%clk 0:00:46]}  Nd5 {[%clk 0:00:17]} 47. a5 {[%clk 0:00:42]}  Nb4 {[%clk 0:00:17]} 48. Bc4 {[%clk 0:00:40]}  Ke5 {[%clk 0:00:17]} 49. Bf7 {[%clk 0:00:31]}  Be4 {[%clk 0:00:17]} 50. b6 {[%clk 0:00:24]}  Kd6 {[%clk 0:00:11]} 51. Kf4 {[%clk 0:00:22]}  Bb7 {[%clk 0:00:05]} 52. Bxg6 {[%clk 0:00:20]}  Nc6 {[%clk 0:00:05]} 53. Be4 {[%clk 0:00:18]}  Nxa5 {[%clk 0:00:06]} 54. Bxb7 {[%clk 0:00:18]}  Nxb7 {[%clk 0:00:07]} 55. Kf5 {[%clk 0:00:19]}  Kc6 {[%clk 0:00:06]} 56. Kg6 {[%clk 0:00:19]}  Kxb6 {[%clk 0:00:07]} 57. Kxh6 {[%clk 0:00:20]}  Kc6 {[%clk 0:00:07]} 58. g4 {[%clk 0:00:21]}  Kd6 {[%clk 0:00:08]} 59. g5 {[%clk 0:00:21]}  Nd8 {[%clk 0:00:04]} 60. g6 {[%clk 0:00:17]}  Ne6 {[%clk 0:00:05]} 61. f4 {[%clk 0:00:16]}  Ke7 {[%clk 0:00:02]} 62. f5 {[%clk 0:00:13]}  Nd4 {[%clk 0:00:03]} 63. Kg5 {[%clk 0:00:08]}  Nf3+ {[%clk 0:00:03]} 64. Kf4 {[%clk 0:00:08]}  Nh4 {[%clk 0:00:04]} 65. Kg5 {[%clk 0:00:08]}  Nf3+ {[%clk 0:00:04]} 66. Kf4 {[%clk 0:00:08]}  Nh4 {[%clk 0:00:04]} 67. Ke5 {[%clk 0:00:08]}  Nf3+ {[%clk 0:00:04]} 68. Ke4 {[%clk 0:00:07]}  Nh4 {[%clk 0:00:04]} 69. Kf4 {[%clk 0:00:07]}  Ng2+ {[%clk 0:00:03]} 70. Kg5 {[%clk 0:00:07]}  Ne3 {[%clk 0:00:03]} 71. f6+ {[%clk 0:00:08]}  Kf8 {[%clk 0:00:04]} 72. Kh6 {[%clk 0:00:08]}  Ng4+ {[%clk 0:00:03]} 73. Kg5 {[%clk 0:00:08]}  Ne5 {[%clk 0:00:04]} 74. Kf5 {[%clk 0:00:08]}  Nd7 {[%clk 0:00:04]} 75. Ke6 {[%clk 0:00:08]}  Nxf6 {[%clk 0:00:02]} 76. Kxf6 {[%clk 0:00:09]}  Kg8 {[%clk 0:00:03]} 77. g7 {[%clk 0:00:10]}  Kh7 {[%clk 0:00:03]} 78. Kf7 {[%clk 0:00:11]} 1-0


[Site "https://www.chess.com"]

[Event "Titled Tuesday Blitz May 10 Early 2022"]
[White "Wartiovaara, Oliver"]
[Black "Skytte, Rasmus"]
[WhiteFideId "513024"]
[BlackFideId "1404210"]
[WhiteElo "1971"]
[BlackElo "2430"]
[Result "1-0"]
[Round "11"]
[TimeControl "180+1"]
[Date "2022.05.11"]
[WhiteClock "0:00:08"]
[BlackClock "0:00:01"]

1. e4 {[%clk 0:02:47]}  c6 {[%clk 0:02:58]} 2. d4 {[%clk 0:02:45]}  d5 {[%clk 0:02:56]} 3. exd5 {[%clk 0:02:42]}  cxd5 {[%clk 0:02:54]} 4. Bd3 {[%clk 0:02:43]}  Nc6 {[%clk 0:02:51]} 5. c3 {[%clk 0:02:43]}  Nf6 {[%clk 0:02:46]} 6. Bf4 {[%clk 0:02:36]}  Bg4 {[%clk 0:02:41]} 7. Qb3 {[%clk 0:02:36]}  Qd7 {[%clk 0:02:39]} 8. Nd2 {[%clk 0:02:35]}  e6 {[%clk 0:02:36]} 9. Ngf3 {[%clk 0:02:35]}  Bd6 {[%clk 0:02:34]} 10. Ne5 {[%clk 0:02:34]}  Qc7 {[%clk 0:02:30]} 11. Nxg4 {[%clk 0:02:17]}  Bxf4 {[%clk 0:02:21]} 12. Nxf6+ {[%clk 0:02:16]}  gxf6 {[%clk 0:02:20]} 13. Nf3 {[%clk 0:02:15]}  h5 {[%clk 0:02:12]} 14. g3 {[%clk 0:02:06]}  Bd6 {[%clk 0:02:04]} 15. O-O {[%clk 0:02:03]}  h4 {[%clk 0:01:59]} 16. Nxh4 {[%clk 0:02:02]}  O-O-O {[%clk 0:01:48]} 17. Ng2 {[%clk 0:01:47]}  Rh3 {[%clk 0:01:41]} 18. Ne3 {[%clk 0:00:58]}  Rdh8 {[%clk 0:01:37]} 19. Nxd5 {[%clk 0:00:55]}  exd5 {[%clk 0:01:25]} 20. Bf5+ {[%clk 0:00:53]}  Kb8 {[%clk 0:01:18]} 21. Bxh3 {[%clk 0:00:51]}  Rxh3 {[%clk 0:01:18]} 22. Qxd5 {[%clk 0:00:51]}  Rh7 {[%clk 0:00:58]} 23. Qe4 {[%clk 0:00:42]}  Rh8 {[%clk 0:00:49]} 24. Qf3 {[%clk 0:00:24]}  Qd7 {[%clk 0:00:35]} 25. Qxf6 {[%clk 0:00:22]}  Rg8 {[%clk 0:00:17]} 26. Rfe1 {[%clk 0:00:19]}  a6 {[%clk 0:00:16]} 27. Re3 {[%clk 0:00:15]}  Bc7 {[%clk 0:00:16]} 28. Rae1 {[%clk 0:00:14]}  Rg6 {[%clk 0:00:16]} 29. Qh8+ {[%clk 0:00:13]}  Ka7 {[%clk 0:00:16]} 30. Qe8 {[%clk 0:00:12]}  Qg4 {[%clk 0:00:15]} 31. Qe4 {[%clk 0:00:12]}  Qg5 {[%clk 0:00:13]} 32. Rf3 {[%clk 0:00:08]}  Qh5 {[%clk 0:00:12]} 33. Rf5 {[%clk 0:00:08]}  Qh3 {[%clk 0:00:11]} 34. Rxf7 {[%clk 0:00:07]}  Rh6 {[%clk 0:00:09]} 35. Qg2 {[%clk 0:00:07]}  Qh5 {[%clk 0:00:07]} 36. Rxc7 {[%clk 0:00:06]}  Qg5 {[%clk 0:00:06]} 37. Rf7 {[%clk 0:00:05]}  Qd2 {[%clk 0:00:05]} 38. Rf1 {[%clk 0:00:05]}  Qxb2 {[%clk 0:00:04]} 39. f4 {[%clk 0:00:06]}  Qxc3 {[%clk 0:00:04]} 40. f5 {[%clk 0:00:06]}  Qxd4+ {[%clk 0:00:04]} 41. Qf2 {[%clk 0:00:06]}  Qxf2+ {[%clk 0:00:02]} 42. Rxf2 {[%clk 0:00:07]}  Nd4 {[%clk 0:00:03]} 43. f6 {[%clk 0:00:07]}  Rg6 {[%clk 0:00:01]} 44. Re7 {[%clk 0:00:07]}  Rh6 {[%clk 0:00:01]} 45. f7 {[%clk 0:00:08]}  Rh8 {[%clk 0:00:01]} 46. Re8 {[%clk 0:00:08]} 1-0


[Site "https://www.chess.com"]

[Event "Titled Tuesday Blitz May 10 Early 2022"]
[White "Xiong, Jeffery"]
[Black "Steinberg, Nitzan"]
[WhiteFideId "2047640"]
[BlackFideId "2801795"]
[WhiteElo "2727"]
[BlackElo "2471"]
[Result "1-0"]
[Round "11"]
[TimeControl "180+1"]
[Date "2022.05.10"]
[WhiteClock "0:00:31"]
[BlackClock "0:00:04"]

1. e4 {[%clk 0:03:00]}  c5 {[%clk 0:03:00]} 2. Nf3 {[%clk 0:03:01]}  d6 {[%clk 0:03:00]} 3. Nc3 {[%clk 0:03:01]}  a6 {[%clk 0:03:00]} 4. d4 {[%clk 0:03:01]}  cxd4 {[%clk 0:03:00]} 5. Qxd4 {[%clk 0:03:02]}  Nc6 {[%clk 0:03:00]} 6. Qd3 {[%clk 0:03:02]}  g6 {[%clk 0:03:00]} 7. Nd5 {[%clk 0:03:02]}  e6 {[%clk 0:02:43]} 8. Ne3 {[%clk 0:03:02]}  Nf6 {[%clk 0:02:37]} 9. Be2 {[%clk 0:02:59]}  Be7 {[%clk 0:02:26]} 10. O-O {[%clk 0:02:58]}  O-O {[%clk 0:02:27]} 11. Rd1 {[%clk 0:02:58]}  Qc7 {[%clk 0:02:24]} 12. c4 {[%clk 0:02:58]}  b6 {[%clk 0:02:23]} 13. b3 {[%clk 0:02:58]}  Bb7 {[%clk 0:02:22]} 14. Bb2 {[%clk 0:02:57]}  Rfd8 {[%clk 0:02:17]} 15. Qc3 {[%clk 0:02:54]}  Rac8 {[%clk 0:01:54]} 16. Rac1 {[%clk 0:02:53]}  Ne5 {[%clk 0:01:44]} 17. Nd2 {[%clk 0:02:53]}  g5 {[%clk 0:01:37]} 18. Qc2 {[%clk 0:02:32]}  Qb8 {[%clk 0:01:29]} 19. Qb1 {[%clk 0:02:32]}  Qa8 {[%clk 0:01:28]} 20. f3 {[%clk 0:02:29]}  h5 {[%clk 0:01:24]} 21. Qa1 {[%clk 0:02:27]}  Qb8 {[%clk 0:01:23]} 22. b4 {[%clk 0:02:25]}  Nfd7 {[%clk 0:01:15]} 23. Nb3 {[%clk 0:02:25]}  Ng6 {[%clk 0:01:14]} 24. a4 {[%clk 0:01:49]}  Nde5 {[%clk 0:01:14]} 25. a5 {[%clk 0:01:29]}  bxa5 {[%clk 0:01:13]} 26. Nxa5 {[%clk 0:01:28]}  Ba8 {[%clk 0:01:13]} 27. Bc3 {[%clk 0:01:21]}  h4 {[%clk 0:01:13]} 28. Nb3 {[%clk 0:00:59]}  Nf4 {[%clk 0:01:04]} 29. Bf1 {[%clk 0:00:59]}  h3 {[%clk 0:01:00]} 30. Bxe5 {[%clk 0:00:53]}  dxe5 {[%clk 0:00:58]} 31. g3 {[%clk 0:00:54]}  Qxb4 {[%clk 0:00:55]} 32. Rxd8+ {[%clk 0:00:48]}  Rxd8 {[%clk 0:00:53]} 33. Qc3 {[%clk 0:00:48]}  Ng6 {[%clk 0:00:26]} 34. c5 {[%clk 0:00:48]}  a5 {[%clk 0:00:18]} 35. Nxa5 {[%clk 0:00:43]}  Qb8 {[%clk 0:00:16]} 36. Bxh3 {[%clk 0:00:41]}  Qa7 {[%clk 0:00:16]} 37. Bf1 {[%clk 0:00:38]}  Rc8 {[%clk 0:00:16]} 38. Nb3 {[%clk 0:00:38]}  Bc6 {[%clk 0:00:14]} 39. Ra1 {[%clk 0:00:38]}  Qc7 {[%clk 0:00:13]} 40. Nc4 {[%clk 0:00:37]}  Kg7 {[%clk 0:00:12]} 41. Ne3 {[%clk 0:00:33]}  Bd7 {[%clk 0:00:11]} 42. Qa5 {[%clk 0:00:32]}  Bxc5 {[%clk 0:00:09]} 43. Qxc5 {[%clk 0:00:29]}  Qxc5 {[%clk 0:00:10]} 44. Nxc5 {[%clk 0:00:30]}  Rxc5 {[%clk 0:00:10]} 45. Kf2 {[%clk 0:00:31]}  Ne7 {[%clk 0:00:08]} 46. Ra7 {[%clk 0:00:31]}  Nc6 {[%clk 0:00:04]} 47. Rxd7 {[%clk 0:00:31]}  Ra5 {[%clk 0:00:04]} 48. Rd2 {[%clk 0:00:30]}  Nd4 {[%clk 0:00:05]} 49. Nc4 {[%clk 0:00:31]}  Rc5 {[%clk 0:00:04]} 50. Nxe5 {[%clk 0:00:31]}  Nb3 {[%clk 0:00:04]} 51. Rb2 {[%clk 0:00:31]}  Nc1 {[%clk 0:00:04]} 52. Nd3 {[%clk 0:00:31]} 1-0


[Site "https://www.chess.com"]

[Event "Titled Tuesday Blitz May 10 Early 2022"]
[White "Xu, Yi"]
[Black "FGHSMN"]
[WhiteFideId "8605564"]
[WhiteElo "2471"]
[BlackElo "2770"]
[Result "0-1"]
[Round "11"]
[TimeControl "180+1"]
[Date "2022.05.10"]
[WhiteClock "0:00:43"]
[BlackClock "0:00:26"]

1. e4 {[%clk 0:03:00]}  c5 {[%clk 0:02:59]} 2. Nf3 {[%clk 0:03:01]}  e6 {[%clk 0:02:59]} 3. d4 {[%clk 0:03:00]}  cxd4 {[%clk 0:02:59]} 4. Nxd4 {[%clk 0:03:01]}  a6 {[%clk 0:03:00]} 5. c4 {[%clk 0:03:02]}  Nf6 {[%clk 0:03:00]} 6. Nc3 {[%clk 0:03:02]}  Qc7 {[%clk 0:03:00]} 7. a3 {[%clk 0:03:02]}  b6 {[%clk 0:02:59]} 8. Be3 {[%clk 0:03:02]}  Bb7 {[%clk 0:03:00]} 9. f3 {[%clk 0:03:02]}  Be7 {[%clk 0:02:59]} 10. Rc1 {[%clk 0:03:02]}  d6 {[%clk 0:02:58]} 11. Be2 {[%clk 0:03:02]}  Nbd7 {[%clk 0:02:59]} 12. O-O {[%clk 0:03:03]}  O-O {[%clk 0:02:59]} 13. b4 {[%clk 0:03:03]}  Rac8 {[%clk 0:03:00]} 14. Kh1 {[%clk 0:03:04]}  Rfe8 {[%clk 0:03:00]} 15. Qd2 {[%clk 0:03:02]}  Qb8 {[%clk 0:03:01]} 16. Rfd1 {[%clk 0:02:56]}  Bd8 {[%clk 0:03:01]} 17. Na4 {[%clk 0:02:54]}  Bc7 {[%clk 0:02:59]} 18. Rc2 {[%clk 0:02:37]}  h5 {[%clk 0:02:45]} 19. Bg1 {[%clk 0:02:34]}  h4 {[%clk 0:02:43]} 20. Bf1 {[%clk 0:02:31]}  h3 {[%clk 0:02:37]} 21. gxh3 {[%clk 0:02:28]}  Ne5 {[%clk 0:02:23]} 22. Bg2 {[%clk 0:02:26]}  d5 {[%clk 0:02:11]} 23. exd5 {[%clk 0:02:25]}  exd5 {[%clk 0:02:11]} 24. c5 {[%clk 0:02:25]}  Nc4 {[%clk 0:02:08]} 25. Qd3 {[%clk 0:02:01]}  b5 {[%clk 0:02:04]} 26. Nc3 {[%clk 0:01:58]}  Bf4 {[%clk 0:01:54]} 27. Re2 {[%clk 0:01:48]}  Nxa3 {[%clk 0:01:35]} 28. Rde1 {[%clk 0:01:44]}  Nc4 {[%clk 0:01:34]} 29. c6 {[%clk 0:01:29]}  Bxc6 {[%clk 0:01:14]} 30. Nxc6 {[%clk 0:01:23]}  Rxe2 {[%clk 0:01:10]} 31. Rxe2 {[%clk 0:01:10]}  Rxc6 {[%clk 0:01:09]} 32. Nxd5 {[%clk 0:01:11]}  Nxd5 {[%clk 0:01:04]} 33. Qxd5 {[%clk 0:01:11]}  Rd6 {[%clk 0:00:59]} 34. Qf5 {[%clk 0:01:09]}  Rd1 {[%clk 0:00:57]} 35. Qe4 {[%clk 0:01:01]}  Qb6 {[%clk 0:00:50]} 36. Re1 {[%clk 0:00:54]}  Rxe1 {[%clk 0:00:50]} 37. Qxe1 {[%clk 0:00:54]}  Be3 {[%clk 0:00:51]} 38. f4 {[%clk 0:00:52]}  Bxg1 {[%clk 0:00:48]} 39. Qxg1 {[%clk 0:00:52]}  Qd6 {[%clk 0:00:48]} 40. Qe1 {[%clk 0:00:47]}  Qxf4 {[%clk 0:00:30]} 41. Qe8+ {[%clk 0:00:47]}  Kh7 {[%clk 0:00:31]} 42. Qe4+ {[%clk 0:00:48]}  Qxe4 {[%clk 0:00:31]} 43. Bxe4+ {[%clk 0:00:48]}  g6 {[%clk 0:00:32]} 44. Bb7 {[%clk 0:00:49]}  Kg7 {[%clk 0:00:31]} 45. Kg2 {[%clk 0:00:49]}  Nd6 {[%clk 0:00:29]} 46. Bxa6 {[%clk 0:00:49]}  Kf6 {[%clk 0:00:28]} 47. Kf3 {[%clk 0:00:49]}  Ke5 {[%clk 0:00:27]} 48. Kg4 {[%clk 0:00:49]}  f6 {[%clk 0:00:24]} 49. h4 {[%clk 0:00:49]}  Ke4 {[%clk 0:00:23]} 50. h5 {[%clk 0:00:49]}  gxh5+ {[%clk 0:00:23]} 51. Kxh5 {[%clk 0:00:49]}  f5 {[%clk 0:00:24]} 52. h4 {[%clk 0:00:47]}  f4 {[%clk 0:00:25]} 53. Kg4 {[%clk 0:00:47]}  f3 {[%clk 0:00:25]} 54. Kg3 {[%clk 0:00:43]}  Ke3 {[%clk 0:00:26]} 55. h5 {[%clk 0:00:43]}  f2 {[%clk 0:00:26]} 0-1


[Site "https://www.chess.com"]

[Event "Titled Tuesday Blitz May 10 Early 2022"]
[White "Yuan, Qingyu"]
[Black "Jobava, Baadur"]
[WhiteFideId "8609772"]
[BlackFideId "13601520"]
[WhiteElo "2359"]
[BlackElo "2617"]
[Result "0-1"]
[Round "11"]
[TimeControl "180+1"]
[Date "2022.05.10"]
[WhiteClock "0:00:02"]
[BlackClock "0:01:03"]

1. e4 {[%clk 0:03:00]}  c6 {[%clk 0:02:59]} 2. Nf3 {[%clk 0:02:59]}  d5 {[%clk 0:03:00]} 3. Nc3 {[%clk 0:02:58]}  Bg4 {[%clk 0:03:00]} 4. h3 {[%clk 0:02:58]}  Bxf3 {[%clk 0:03:01]} 5. Qxf3 {[%clk 0:02:59]}  e6 {[%clk 0:03:02]} 6. d3 {[%clk 0:02:44]}  Nd7 {[%clk 0:03:02]} 7. Bd2 {[%clk 0:02:35]}  g6 {[%clk 0:03:00]} 8. g3 {[%clk 0:02:35]}  h5 {[%clk 0:03:00]} 9. Bg2 {[%clk 0:02:35]}  Bh6 {[%clk 0:03:00]} 10. Bxh6 {[%clk 0:02:31]}  Nxh6 {[%clk 0:03:01]} 11. O-O-O {[%clk 0:02:23]}  Qf6 {[%clk 0:02:57]} 12. Qe2 {[%clk 0:02:18]}  d4 {[%clk 0:02:57]} 13. Nb1 {[%clk 0:02:18]}  h4 {[%clk 0:02:57]} 14. Nd2 {[%clk 0:02:16]}  O-O-O {[%clk 0:02:54]} 15. Kb1 {[%clk 0:02:14]}  hxg3 {[%clk 0:02:49]} 16. fxg3 {[%clk 0:02:15]}  Ne5 {[%clk 0:02:49]} 17. Rdf1 {[%clk 0:02:10]}  Qe7 {[%clk 0:02:46]} 18. Rf2 {[%clk 0:02:03]}  Kb8 {[%clk 0:02:44]} 19. Rhf1 {[%clk 0:02:03]}  a6 {[%clk 0:02:42]} 20. Nf3 {[%clk 0:01:58]}  Qc7 {[%clk 0:02:42]} 21. Qd2 {[%clk 0:01:53]}  Ka7 {[%clk 0:02:41]} 22. Qf4 {[%clk 0:01:49]}  f6 {[%clk 0:02:29]} 23. Qxf6 {[%clk 0:01:48]}  Nhf7 {[%clk 0:02:23]} 24. Qxe6 {[%clk 0:01:42]}  Rhe8 {[%clk 0:02:17]} 25. Qf6 {[%clk 0:01:35]}  Nxf3 {[%clk 0:02:17]} 26. Rxf3 {[%clk 0:01:28]}  Ne5 {[%clk 0:02:18]} 27. Rf4 {[%clk 0:01:27]}  a5 {[%clk 0:02:18]} 28. h4 {[%clk 0:01:21]}  a4 {[%clk 0:02:18]} 29. a3 {[%clk 0:01:20]}  c5 {[%clk 0:02:17]} 30. Rd1 {[%clk 0:01:10]}  Rd6 {[%clk 0:02:17]} 31. Qg5 {[%clk 0:01:08]}  Rb6 {[%clk 0:02:17]} 32. Rf6 {[%clk 0:01:04]}  Rb5 {[%clk 0:02:14]} 33. Ka1 {[%clk 0:00:51]}  Qe7 {[%clk 0:01:24]} 34. Bh3 {[%clk 0:00:43]}  c4 {[%clk 0:01:24]} 35. Re6 {[%clk 0:00:26]}  Qxg5 {[%clk 0:01:24]} 36. hxg5 {[%clk 0:00:26]}  Rxe6 {[%clk 0:01:18]} 37. Bxe6 {[%clk 0:00:27]}  cxd3 {[%clk 0:01:19]} 38. cxd3 {[%clk 0:00:27]}  Rc5 {[%clk 0:01:10]} 39. Kb1 {[%clk 0:00:27]}  b5 {[%clk 0:01:08]} 40. Rd2 {[%clk 0:00:20]}  Kb6 {[%clk 0:01:08]} 41. Bd5 {[%clk 0:00:12]}  Ka5 {[%clk 0:01:06]} 42. Be6 {[%clk 0:00:13]}  b4 {[%clk 0:01:06]} 43. axb4+ {[%clk 0:00:12]}  Kxb4 {[%clk 0:01:07]} 44. Bd5 {[%clk 0:00:10]}  Rc7 {[%clk 0:01:02]} 45. Be6 {[%clk 0:00:07]}  Rh7 {[%clk 0:01:02]} 46. Ka2 {[%clk 0:00:05]}  Rh1 {[%clk 0:01:02]} 47. Rc2 {[%clk 0:00:04]}  Nxd3 {[%clk 0:01:01]} 48. Rc4+ {[%clk 0:00:04]}  Kb5 {[%clk 0:01:02]} 49. Rxd4 {[%clk 0:00:03]}  Nb4+ {[%clk 0:01:02]} 50. Rxb4+ {[%clk 0:00:02]}  Kxb4 {[%clk 0:01:03]} 51. Bf7 {[%clk 0:00:03]}  Rh2 {[%clk 0:01:03]} 52. Ka1 {[%clk 0:00:02]}  Rf2 {[%clk 0:01:02]} 53. Bxg6 {[%clk 0:00:02]}  Kb3 {[%clk 0:01:03]} 0-1